Cogmind - Beta 13 @@@ ROGUE MODE // 2024.05.02 @ 12:32:16 Player: ThemBee Result: Destroyed by H-55 Commando with Assault Rifle Performance ------------- Evolutions (0) 0 Regions Visited (3) 600 Robots Destroyed (19) 95 Value Destroyed (510) 510 Prototype IDs (6) 120 Alien Tech Used (0) 0 Bonus (0) 0 TOTAL SCORE: 1325 Bonus ------- None Cogmind --------- Core Integrity 0/250 Matter 257/300 Energy 100/100 System Corruption 0% Temperature Cool (0) Movement Treading (160) Location -7/Recycling Parts ------- > --- POWER (1) -------- (None) > --- PROPULSION (2) --- Light Treads Subdweller Monowheel > --- UTILITY (2) ------ (None) > --- WEAPON (2) ------- Battle Rifle Battle Cannon > --- INVENTORY (5) ---- Scrap Engine High-capacity Storage Unit Makeshift Light Armor Plating Grenade Launcher Peak State ------------ > --- POWER ------------ Subdweller Power Source > --- PROPULSION ------- Light Treads > --- UTILITY ---------- Small Storage Unit Makeshift Light Armor Plating > --- WEAPON ----------- Subdweller Beam Cannon Makeshift Shrapnel Gun > --- INVENTORY -------- High-capacity Storage Unit Scrap Shield Battle Rifle Grenade Launcher Multitool [Rating: 15] Favorites ----------- Power Ion Engine Engine Ion Engine Propulsion Subdweller Monowheel Treads Light Treads Wheel Subdweller Monowheel Utility Small Storage Unit Device Seismic Detector Storage Small Storage Unit Protection Scrap Shield Weapon Battle Rifle Energy Gun Small Laser Energy Cannon Beam Cannon Ballistic Gun Battle Rifle Ballistic Cannon Battle Cannon Special Weapon Multitool Slashing Weapon Mining Claw Build | -11 -10 -10 -7 ------- Run | Yrd Mat Sub Rec Slots Evolved . | . . . . Power . | . . . . Propulsion . | . . . . Utility . | . . . . Weapon . | . . . . Parts Attached 28 | 7 2 19 . Power 5 | 1 . 4 . Engine 5 | 1 . 4 . Core . | . . . . Reactor . | . . . . Propulsion 6 | 2 . 4 . Treads 2 | . . 2 . Leg . | . . . . Wheel 4 | 2 . 2 . Hover . | . . . . Flight . | . . . . Utility 4 | 2 . 2 . Device 1 | 1 . . . Storage 1 | 1 . . . Processor . | . . . . Hackware . | . . . . Protection 2 | . . 2 . Artifact . | . . . . Weapon 13 | 2 2 9 . Energy Gun 2 | 2 . . . Energy Cannon 3 | . 1 2 . Ballistic Gun 4 | . . 4 . Ballistic Cannon 2 | . 1 1 . Launcher . | . . . . Special Weapon 1 | . . 1 . Impact Weapon . | . . . . Slashing Weapon 1 | . . 1 . Piercing Weapon . | . . . . Special Melee Weapon . | . . . . Unidentified Prototypes . | . . . . Parts Lost 8 | . . 7 1 Power 2 | . . 2 . Propulsion 3 | . . 3 . Utility 2 | . . 1 1 Weapon 1 | . . 1 . Highest Loss Streak 2 | . . 2 1 To Critical Strikes . | . . . . Average Slot Usage (%) 79 | . 100 76 71 Engine 5 | . 14 3 . Treads 7 | . . 8 14 Wheel 18 | . 28 16 14 Device 4 | . 14 3 . Storage 7 | . 14 7 . Protection 7 | . . 8 14 Energy Gun 1 | . 10 . . Energy Cannon 7 | . 13 7 . Ballistic Gun 10 | . . 13 14 Ballistic Cannon 7 | . 3 6 14 Naked Turns . | . . . . Heaviest Build 23 | 14 17 23 23 Greatest Support 36 | 26 26 36 20 Greatest Overweight (x) 1 | . . 1 1 Average Overweight (x) . | . . . 1 Largest Inventory Capacity 8 | 8 8 8 5 Average Capacity 6 | 7 8 6 5 Most Carried 8 | 7 8 8 5 Average Carried 6 | 4 7 6 4 Final Capacity 8 | 8 8 5 5 Final Carried 8 | 6 8 5 5 Class Distribution -------------------- 94% | Mutant 5% | Derelict-Mutant Dominant Class ---------------- Mutant | -10/Materials Mutant | -10/Subcaves Mutant | -7/Recycling Resources | -11 -10 -10 -7 ----------- Run | Yrd Mat Sub Rec Matter Collected 669 | 260 30 379 . Remotely . | . . . . Salvage Created 583 | 83 20 456 24 Parts 32 | 8 . 23 1 Haulers Intercepted . | . . . . Recyclers Shooed . | . . . . Parts Field Recycled . | . . . . Retrieved Matter . | . . . . Parts Self-Destructed 9 | . . 9 . Prevented . | . . . . Kills | -11 -10 -10 -7 ------- Run | Yrd Mat Sub Rec Combat Hostiles Destroyed 15 | . 1 13 1 Guns 4 | . . 4 . Cannons 9 | . 1 7 1 Classes Destroyed 6 | 2 1 3 . Tunneler 1 | 1 . . . Recycler 1 | 1 . . . Turret 2 | . . 2 . Swarmer 6 | . 1 4 1 Cobbler 1 | . . 1 . Subdweller 9 | . . 9 . Best Kill Streak 4 | 2 1 4 1 Combat Bots Only 4 | . 1 4 1 Max Kills in Single Turn 2 | 1 1 2 1 Gunslinging . | . . . . Exploded . | . . . . Melee . | . . . . Uniques/NPCs Destroyed . | . . . . Combat | -11 -10 -10 -7 -------- Run | Yrd Mat Sub Rec Hostile Shots Fired 144 | . 1 125 18 Missed 44 | . . 42 2 Damage Taken 1495 | . 8 1183 304 Core 256 | . 8 211 37 Absorbed by Shields . | . . . . Core Remaining (%) 100 | 100 . . . Volleys Fired 79 | 6 1 66 6 Largest 2 | 2 2 2 2 Hottest 110 | 80 100 110 64 Shots Fired 142 | 12 2 116 12 Gun 72 | 12 1 53 6 Cannon 70 | . 1 63 6 Launcher . | . . . . Special . | . . . . Kinetic 75 | . . 63 12 Thermal 61 | 6 2 53 . Explosive . | . . . . Electromagnetic 6 | 6 . . . Robot Hit Streak 15 | 4 1 15 6 Robot Miss Streak 5 | 2 1 5 1 Penetration Max . | . . . . Secondary Targets . | . . . . Shots Hit Robots 100 | 8 1 82 9 Core Hits 30 | 3 1 26 . Critical Kills 2 | . . 2 . Critical Parts Destroyed 1 | . . 1 . Critical Strikes 4 | . . 4 . Meltdown 2 | . . 2 . Destroy 1 | . . 1 . Blast 1 | . . 1 . Melee Attacks 1 | . . 1 . Impact . | . . . . Slashing 1 | . . 1 . Piercing . | . . . . Sneak Attacks . | . . . . Combat Hostiles . | . . . . Follow-up Attacks . | . . . . Damage Inflicted 2049 | 106 18 1777 148 Guns 877 | 106 . 698 73 Cannons 1172 | . 18 1079 75 Explosions . | . . . . Melee . | . . . . Ramming . | . . . . Kinetic 987 | . . 839 148 Thermal 992 | 36 18 938 . Explosive . | . . . . Electromagnetic 70 | 70 . . . Impact . | . . . . Slashing . | . . . . Piercing . | . . . . Highest Corruption . | . . . . Average Corruption . | . . . . Corruption Purged . | . . . . Corruption Blocked . | . . . . Overload Shots . | . . . . Overflow Damage 14 | . . . 14 Projectiles 14 | . . . 14 Explosions . | . . . . Melee . | . . . . Knockbacks 7 | . . 4 3 Impact . | . . . . Kinetic 7 | . . 4 3 Secondary . | . . . . Self-Inflicted Damage . | . . . . Shots . | . . . . Rammed . | . . . . Targets Rammed . | . . . . Kicked . | . . . . Crushed . | . . . . Highest Temperature 290 | 54 48 290 28 Average Temperature 59 | 28 28 87 12 Received Heat Transfer 713 | . 9 704 . Siege Activations . | . . . . Robots Corrupted . | . . . . Combat Hostiles . | . . . . Parts Fried . | . . . . Impact Corruptions . | . . . . Robots Melted 2 | . . 2 . Combat Hostiles 2 | . . 2 . Parts Melted 3 | . . 3 . Heat Transferred 1555 | 75 37 1443 . Parts Sabotaged . | . . . . Parts Stolen . | . . . . Parts Stripped . | . . . . Power Chain Reactions . | . . . . Alert | -11 -10 -10 -7 ------- Run | Yrd Mat Sub Rec Peak Influence 337 | 10 106 . 337 Initial 282 | . 6 . 282 Average 145 | 1 52 . 293 Maximum Alert Level 1 | . . . 1 Low Security (%) 61 | 100 100 . 4 Level 1 38 | . . . 95 Level 2 . | . . . . Level 3 . | . . . . Level 4 . | . . . . Level 5 . | . . . . High Security . | . . . . Max Security . | . . . . Squads Dispatched . | . . . . Investigation . | . . . . Extermination . | . . . . Reinforcement . | . . . . Assault . | . . . . Garrison . | . . . . Intercept . | . . . . Searches Triggered . | . . . . Construction Impeded . | . . . . Haulers Reinforced . | . . . . Active Scanning Responses . | . . . . Cargo Convoy Interrupts . | . . . . Stealth | -11 -10 -10 -7 --------- Run | Yrd Mat Sub Rec Distress Signals . | . . . . Communications Jammed . | . . . . Distress Signals . | . . . . Times Spotted 56 | . 6 47 3 Peak Tracking Total 5 | . 2 5 3 Tactical Retreats 4 | . . 4 . Traps | -11 -10 -10 -7 ------- Run | Yrd Mat Sub Rec Traps Triggered . | . . . . Indirectly . | . . . . Trap Hack Attempts . | . . . . Triggered . | . . . . Disarmed . | . . . . Reprogrammed . | . . . . Reused . | . . . . Traps Extracted . | . . . . Installed . | . . . . Triggered . | . . . . Machines | -11 -10 -10 -7 ---------- Run | Yrd Mat Sub Rec Machines Disabled 2 | . . 2 . Max in Single Turn 1 | . . 1 . Machines Repaired . | . . . . Machines Dismantled . | . . . . Machines Sabotaged . | . . . . Overloaded Fab Kills . | . . . . Hacking | -11 -10 -10 -7 --------- Run | Yrd Mat Sub Rec Machines Accessed 13 | . 8 1 4 Terminals 9 | . 7 . 2 Fabricators . | . . . . Repair Stations . | . . . . Recycling Units 3 | . 1 . 2 Scanalyzers . | . . . . Garrison Access . | . . . . Total Hacks 30 | . 22 2 6 Successful 20 | . 12 2 6 Failed 9 | . 9 . . Catastrophic 1 | . 1 . . Database Lockouts 1 | . 1 . . Manual 13 | . 10 . 3 Terminals 23 | . 20 . 3 Fabricators . | . . . . Repair Stations . | . . . . Recycling Units 5 | . 2 . 3 Scanalyzers . | . . . . Garrison Access . | . . . . Terminal Hacks 13 | . 10 2 1 Record 2 | . . 2 . Robot Analysis 3 | . 3 . . Prototype ID Bank 3 | . 2 . 1 Unreport Threat 1 | . 1 . . Locate Traps 2 | . 2 . . Hauler Manifests 1 | . 1 . . Zone Layout 1 | . 1 . . Fabricator Hacks . | . . . . Repair Station Hacks . | . . . . Recycling Unit Hacks 2 | . . . 2 Report Inventory 2 | . . . 2 Scanalyzer . | . . . . Garrison Access Hacks . | . . . . Unauthorized Hacks 5 | . 2 . 3 Terminals 3 | . 1 . 2 Botnet 3 | . 1 . 2 Fabricators . | . . . . Repair Stations . | . . . . Recycling Units 2 | . 1 . 1 Recyclers 2 | . 1 . 1 Scanalyzers . | . . . . Garrison Access . | . . . . Data Cores Recovered . | . . . . Used . | . . . . Hacking Detections 11 | . 7 . 4 Full Trace Events . | . . . . Feedback Events . | . . . . Feedback Blocked . | . . . . Robot Schematics Acquired . | . . . . Robots Built . | . . . . Authchips . | . . . . Time . | . . . . Total Robot Build Rating . | . . . . Part Schematics Acquired . | . . . . Parts Built . | . . . . Authchips . | . . . . Time . | . . . . Total Part Build Rating . | . . . . Parts Repaired . | . . . . Time . | . . . . Parts Recycled . | . . . . Recycled Matter . | . . . . Retrieved Matter . | . . . . Retrieved Components . | . . . . Parts Scanalyzed . | . . . . Part Schematics Acquired . | . . . . Parts Damaged . | . . . . Bothacking | -11 -10 -10 -7 ------------ Run | Yrd Mat Sub Rec Used RIF Installer . | . . . . Robots Hacked . | . . . . Non-combat . | . . . . Combat . | . . . . Robot Hacks Applied . | . . . . Relay Couplers Released . | . . . . Fabnet Peak Effective % . | . . . . Robots Rewired . | . . . . Allies Hacked . | . . . . Hacks Repelled . | . . . . Allies | -11 -10 -10 -7 -------- Run | Yrd Mat Sub Rec Total Allies . | . . . . Largest Group . | . . . . Highest-Rated Group . | . . . . Highest-Rated Ally . | . . . . Total Orders . | . . . . Ally Attacks . | . . . . Total Damage . | . . . . Kills . | . . . . Allies Corrupted . | . . . . Allies Melted . | . . . . Intel | -11 -10 -10 -7 ------- Run | Yrd Mat Sub Rec Robot Analysis Total 3 | . 3 . . Derelict Logs Recovered 1 | . . 1 . Drone Launches . | . . . . Drone Recoveries . | . . . . Exploration | -11 -10 -10 -7 ------------- Run | Yrd Mat Sub Rec Turns Passed 3002 | 89 532 1962 419 Spaces Moved 2029 | 61 546 1256 166 Core 1 | 1 . . . Treads 450 | . . 284 166 Legs . | . . . . Wheels 1578 | 60 546 972 . Hover . | . . . . Flight . | . . . . Fastest Speed 50 | 50 90 90 240 Average Speed 130 | 88 90 136 240 Slowest Speed 240 | 90 90 240 240 Overloaded Moves . | . . . . Propulsion Burnouts . | . . . . Robots Hopped . | . . . . Cave-ins Triggered . | . . . . Exploration Rate (%) 47 | 5 84 63 36 Regions Visited 3 Branch Regions 2 Pre-discovered Areas . | . . . . Known Exits Taken . | . . . . Unknown Exits Taken 3 | 1 1 1 . Scrap Searched 10 | . . 10 . Spaces Dug . | . . . . Terrain Destroyed 6 | . . 5 1 Melee . | . . . . Projectile 6 | . . 5 1 AOE . | . . . . Terrain Rammed . | . . . . Walls Destroyed . | . . . . Machines Disabled . | . . . . Actions | -11 -10 -10 -7 --------- Run | Yrd Mat Sub Rec Total 2237 | 81 585 1395 176 Wait 61 | . 30 30 1 Move 2026 | 60 545 1255 166 Hop . | . . . . Pick Up 20 | 8 3 8 1 Fast Attach 11 | 5 2 4 . Attach 10 | 2 . 8 . Detach 3 | . 1 2 . Swap 7 | . . 7 . Drop 19 | . 3 14 2 Fire 79 | 6 1 66 6 Melee 1 | . . 1 . Ram . | . . . . Kick . | . . . . Crush . | . . . . Escape Stasis . | . . . . Rewire . | . . . . Trap . | . . . . Miscellaneous . | . . . . Route ------- -11/Scrapyard -10/Materials (discovered 5 exits: [*Mat x3] / [*Min] / *Sub) -10/Subcaves (discovered 2 exits: [*Mat] / *Rec) -7/Recycling History --------- Turn | Location | Event 29 | -11/Scrapyard | Discovered new exit (range 15) 90 | -11/Scrapyard | Entered Materials 229 | -10/Materials | Discovered new exit (range 4) 301 | -10/Materials | Discovered new exit (range 10) 304 | -10/Materials | Build established: Mutant 330 | -10/Materials | Central database locked down 381 | -10/Materials | Discovered new exit (range 16) 438 | -10/Materials | Discovered new exit (range 15) 608 | -10/Materials | Discovered new exit (range 5) 622 | -10/Materials | Entered Subcaves 630 | -10/Subcaves | Discovered new exit (range 6) 836 | -10/Subcaves | Shifting Twisted Machinery released Scrap Shield 845 | -10/Subcaves | Shifting Twisted Machinery released Sub. Machine Gun 913 | -10/Subcaves | Shifting Twisted Machinery released Mak. Light Armor Plating 915 | -10/Subcaves | Shifting Twisted Machinery released Sub. Beam Cannon 1082 | -10/Subcaves | Core integrity fell below 50% 1315 | -10/Subcaves | Visited Clippyterm 1525 | -10/Subcaves | Learned Materials trap positions 1619 | -10/Subcaves | Discovered new exit (range 10) 1620 | -10/Subcaves | Core integrity fell below 20% 2584 | -10/Subcaves | Entered Recycling 2590 | -7/Recycling | Found Scrap Engine 3003 | -7/Recycling | Destroyed by H-55 Commando with Assault Rifle Last Messages --------------- 02879_ Connecting with Terminal... >>Trojan(Botnet) Trojan loaded successfully. Testing... Terminal linked with 1 system. Awaiting botnet instructions. 02983_ S-27 Virus springs to life. 02988_ Penetrated by Slug. 02992_ Destroyed VTOL Module. 02992_ S-27 Virus destroyed. 02994_ Penetrated by Slug. 02995_ G-47 Trooper knocked back. 02997_ R-06 Scavenger collects Autogun. 02997_ Destroyed Targeting Computer. 02997_ H-55 Commando knocked back. 03000_ Penetrated by Slug. 03000_ H-55 Commando knocked back. 03000_ R-06 Scavenger destroyed. 03002_ Scrap Shield destroyed. 03002_ K-01 Serf destroyed. Map ----- +----------------------------------------------------+ | ??????????????????????????????????? | | ??????????????????????????????????? | | ??????????????????????????????????? | | ??????????????????????????????????? | | ??????????????????????????????????? | | ??????????????????????????????????? | | ??????????????????????????????????? | | ??????????????????????????????????? | | ??????????????????????????????????? | | ??????????????????????????????????? | | ??????r???????????????????????????? | | ??????????????????????????????????? | | ??????????????????????????????????? | | ??????????????????????????????????? | | ??????????????????????????????????? | | ??????????? r ????????????????????? | | ??????????# ??############+###??? | | ??????????+ ??# a] [#??? | | ??????????# ??# = = Y #??? | | ??????????+ ??#] !! ! k d #??? | | ??????????? ??# t #??? | | ??????????? #?# [Y tY! b h !#??? | | ??????????? ?# ! ! g ! #??? | | ??????????# #???? !% %*#??? | | ??????????# ######## %[ ##???? | | ??????????# @ #???? | | ??????????+ r #???? | | ??????????# +###?? | | ??????????### ####### ## #?? | | ????????????# #?????# ## #?? | | ????????????# #?????# ## #?? | | ??????#######+####### ## #?? | | ??????# ## ## #?? | | ??????# """"" ## ## " #?? | | ??????# """"" ##r ## """#?? | | ??????# """"" # # """#?? | | ??????# # " # """#?? | | ??????# """"" / "T + "" #?? | | ??????# """"" # # """#?? | | ??????# """"" # # ""#?? | | ??????# ## ## """#?? | | ??????# ## ## " #?? | | ??????# """ """ ## ## #?? | | ??????# """T""" ## ## #?? | | ??????############### ## #?? | | ????????????????????# ## #?? | | ????????????????????# #? #?? | | ????????????????????# #?#######?? | | ????????????????????# #?????????? | | ????????????????????# #?????????? | +----------------------------------------------------+ Best States ------------- Heat Dissipation 25 Energy Generation 15 Energy Capacity 250 Matter Stores 300 Matter Capacity 300 Sight Range 16 Terrain Scan Density 10 Armor Coverage 800 Evasion (%) 44 Recoil Reduction 1 Item Schematics ----------------- None Robot Schematics ------------------ None Fabricated ------------ Nothing Alien Tech Used ----------------- None Achievements -------------- None Challenges ------------ None Game ------ Seed BarrageWeightCore Manual? 0 Play Time 00:30:08 Cumulative 61.5 hours Start 2024.05.02 @ 12:00:47 End 2024.05.02 @ 12:32:16 Sessions 1 Manual Loads 0 Difficulty Rogue Special Mode None Game No. 36 Rogue 36 Adventurer 0 Explorer 0 Win Type - Total 1 Types 1/0/0/0/0/0/0/0/0 Lore% 27 Gallery% 41 Achievement% 33 Wizard Run 0 Options --------- Layout 1 ASCII 0 Keyboard 0 Movement Numpad Keybinds 0 Fullscreen 1 Font 32/SmallcapsGlow Map View 50x40 Zoom Use 0% Tactical HUD 1 Map Filters NONE Filters NONE Steam 1 RUN: 526e2a64-d1f4-49b2-8197-628053010776